Cogmind - Beta 14 @@@ ROGUE MODE // 2024.11.11 @ 18:53:53 Player: 7604 Result: Self-destructed Performance ------------- Evolutions (6) 3000 Regions Visited (17) 3400 Robots Destroyed (89) 445 Value Destroyed (2935) 2935 Prototype IDs (27) 540 Alien Tech Used (0) 0 Bonus (959) 959 TOTAL SCORE: 11279 Bonus ------- High Alert Combat Kills 11 Follower Combat Kills 366 Registered with UFD 300 Met Data Miner 300 Friendly Fire -18 Cogmind --------- Core Integrity 887/1150 Matter 143/300 Energy 0/100 System Corruption 0% Temperature Cool (0) Movement Core (50) Location -4/Factory Parts ------- > --- POWER (1) -------- (None) > --- PROPULSION (7) --- Impulse Thruster Array > --- UTILITY (9) ------ Advanced Signal Interpreter Advanced Melee Analysis Suite ECM Suite Hacking Suite Advanced Hacking Suite > --- WEAPON (2) ------- (None) > --- INVENTORY (5) ---- Deep Structural Scanner Advanced Component Analysis Suite Mass Driver Datajack Ionic Axe Peak State ------------ > --- POWER ------------ Light Fission Core > --- PROPULSION ------- Cooled VTOL Module Cooled VTOL Module Nuclear Pulse Thruster Field Propulsion Drive Impulse Thruster Field Propulsion Array > --- UTILITY ---------- Large Storage Unit Advanced Sensor Array Advanced Signal Interpreter Layered Medium Armor Plating Hacking Suite Improved Hacking Suite Advanced System Shield > --- WEAPON ----------- Advanced Datajack Ionic Axe > --- INVENTORY -------- Micro Nuclear Core Centrium Wheel Field Propulsion Drive Medium Storage Unit Compact Battery Deep Structural Scanner Advanced Sensor Array ECM Suite Improved Reaction Control System Improved Propulsion Shielding Improved Light Armor Plating System Shield Mass Driver Mini Grenade Launcher Improved Plasma Cutter [Rating: 96] Favorites ----------- Power Micro Nuclear Core Engine Light Ion Engine Power Core Micro Nuclear Core Reactor Antimatter Reactor Propulsion Improved Aluminum Leg Leg Improved Aluminum Leg Wheel Centrium Wheel Flight Unit Xenon Bombardment Thruster Utility Large Storage Unit Device Improved Heat Sink Storage Large Storage Unit Processor Advanced Signal Interpreter Hackware Hacking Suite Protection Hardened Light Armor Plating Weapon Advanced Beam Cannon Energy Gun Beam Rifle Energy Cannon Advanced Beam Cannon Ballistic Gun Assault Rifle Ballistic Cannon Mass Driver Launcher Mini Grenade Launcher Special Weapon Remote Datajack Impact Weapon Mace Slashing Weapon Dual-blade Saw Special Melee Weapon Advanced Datajack Build | -11 -10 -10 -9 -9 -9 -9 -6 -6 -6 -6 -6 -6 -5 -5 -5 -5 -4 ------- Run | Yrd Mat Min Mat Sto Rec Scr Fac Was Fac Low Low Dat Pro Fac Was Fac Fac Slots Evolved 12 | . . . 2 . . . 6 . . . . . . 2 . . 2 Power . | . . . . . . . . . . . . . . . . . . Propulsion 5 | . . . 1 . . . 2 . . . . . . 2 . . . Utility 7 | . . . 1 . . . 4 . . . . . . . . . 2 Weapon . | . . . . . . . . . . . . . . . . . . Parts Attached 168 | 10 15 2 12 18 4 3 42 6 3 2 . . 1 14 1 24 11 Power 21 | 2 3 . 2 5 1 . 3 1 . . . . . . . 1 3 Engine 11 | 2 2 . 2 3 . . 1 . . . . . . . . . 1 Core 8 | . 1 . . 2 1 . 2 1 . . . . . . . 1 . Reactor 2 | . . . . . . . . . . . . . . . . . 2 Propulsion 55 | 2 5 . 2 8 1 3 16 . 2 . . . 1 3 1 9 2 Treads . | . . . . . . . . . . . . . . . . . . Leg 27 | 2 5 . 2 8 1 3 6 . . . . . . . . . . Wheel 1 | . . . . . . . . . . . . . . . . 1 . Hover . | . . . . . . . . . . . . . . . . . . Flight 27 | . . . . . . . 10 . 2 . . . 1 3 1 8 2 Utility 58 | 2 4 . 5 3 . . 20 2 1 . . . . 7 . 10 4 Device 26 | 1 3 . 4 1 . . 6 1 1 . . . . 3 . 3 3 Storage 6 | 1 1 . . . . . 2 . . . . . . . . 2 . Processor 4 | . . . . . . . 3 . . . . . . . . . 1 Hackware 7 | . . . . . . . 5 . . . . . . . . 2 . Protection 15 | . . . 1 2 . . 4 1 . . . . . 4 . 3 . Artifact . | . . . . . . . . . . . . . . . . . . Weapon 34 | 4 3 2 3 2 2 . 3 3 . 2 . . . 4 . 4 2 Energy Gun 10 | 3 3 1 3 . . . . . . . . . . . . . . Energy Cannon 5 | . . . . 2 2 . 1 . . . . . . . . . . Ballistic Gun 1 | 1 . . . . . . . . . . . . . . . . . Ballistic Cannon 1 | . . . . . . . . . . . . . . . . 1 . Launcher 3 | . . 1 . . . . . . . 1 . . . . . 1 . Special Weapon 2 | . . . . . . . . 1 . . . . . 1 . . . Impact Weapon 1 | . . . . . . . 1 . . . . . . . . . . Slashing Weapon 8 | . . . . . . . 1 1 . . . . . 2 . 2 2 Piercing Weapon . | . . . . . . . . . . . . . . . . . . Special Melee Weapon 3 | . . . . . . . . 1 . 1 . . . 1 . . . Unidentified Prototypes 4 | . . . . 3 . . . . . . . . . 1 . . . Corrupted Parts 5 | 1 2 . . . . . 2 . . . . . . . . . . System Corruption 16 | 2 6 . . . . . 8 . . . . . . . . . . Parts Lost 41 | . 1 . 6 . . . 6 . . . . . 1 2 . 20 5 Power 7 | . 1 . 2 . . . . . . . . . . . . 2 2 Propulsion 15 | . . . 1 . . . 2 . . . . . 1 1 . 9 1 Utility 14 | . . . 2 . . . 3 . . . . . . . . 7 2 Weapon 5 | . . . 1 . . . 1 . . . . . . 1 . 2 . Highest Loss Streak 10 | . 1 . 2 . . . 2 . . . . . 1 1 . 10 3 To Critical Strikes 1 | . . . . . . . 1 . . . . . . . . . . Average Slot Usage (%) 95 | . 99 100 98 99 99 100 95 99 100 100 100 100 100 97 100 86 44 Engine 1 | . 8 . 4 1 . . 1 . . . . . . . . . 1 Core 7 | . 5 14 6 9 11 11 4 6 6 6 6 6 6 5 5 3 . Leg 21 | . 28 28 33 32 32 33 25 . . . . . . . . . . Flight 9 | . . . . . . . 7 33 33 33 33 33 33 40 41 31 8 Device 11 | . 14 14 17 11 11 11 16 6 10 13 13 13 13 5 5 5 9 Storage 8 | . 14 14 11 11 11 11 6 6 6 6 6 6 6 5 5 4 . Processor 2 | . . . . . . . 4 13 8 6 6 6 6 5 5 5 6 Hackware 5 | . . . . . . . 5 20 20 20 20 20 20 17 17 16 10 Protection 6 | . . . 4 11 11 11 9 . . . . . . 4 5 4 . Energy Gun 5 | . 23 27 21 3 . . . . . . . . . . . . . Energy Cannon 8 | . . . . 17 22 22 7 . . . . . . . . . . Slashing Weapon 1 | . . . . . . . 3 5 6 6 6 6 6 5 5 4 3 Special Melee Weapon 1 | . . . . . . . . 1 6 6 6 6 6 4 5 3 . Peak Build Rating 96 | 7 16 16 21 24 26 35 64 71 75 76 75 75 75 87 87 96 63 Average Rating 41 | 5 11 15 18 23 25 31 57 67 73 75 75 75 74 78 85 81 48 On Entrance 46 | . 7 16 16 19 24 26 35 57 71 75 75 75 75 75 84 87 26 Naked Turns . | . . . . . . . . . . . . . . . . . . Heaviest Build 71 | 13 32 32 37 42 40 40 71 34 33 33 33 33 33 41 41 46 23 Greatest Support 86 | 20 26 26 39 39 41 56 86 36 36 35 35 35 35 41 42 45 23 Greatest Overweight (x) 3 | . 1 1 1 1 1 . . . . . . . . . . 3 2 Average Overweight (x) . | . . 1 . . . . . . . . . . . . . . . Largest Inventory Capacity 20 | 8 15 15 15 15 15 15 20 15 15 15 15 15 15 15 15 15 5 Average Capacity 14 | 7 9 15 15 15 15 15 17 15 15 15 15 15 15 15 15 14 5 Most Carried 20 | 3 11 13 15 15 15 15 20 15 15 15 15 15 15 15 15 15 5 Average Carried 13 | 1 7 11 13 14 14 14 15 14 14 15 15 15 14 14 15 13 4 Final Capacity 15 | 8 15 15 15 15 15 15 15 15 15 15 15 15 15 15 15 5 5 Final Carried 15 | 3 11 13 15 15 15 15 14 15 15 15 15 15 14 15 15 4 5 Class Distribution -------------------- 33% | Mutant 30% | Commander-Mutant 19% | Hacker-Sprinter 10% | Hacker-Mutant 3% | Assassin Dominant Class ---------------- Mutant | -10/Materials Mutant | -10/Mines Mutant | -9/Materials Mutant | -9/Storage Commander-Mutant | -9/Recycling Commander-Mutant | -9/Scraptown Mutant | -6/Factory Hacker-Sprinter | -6/Waste Hacker-Sprinter | -6/Factory Hacker-Sprinter | -6/Lower Caves Hacker-Sprinter | -6/Lower Caves Hacker-Sprinter | -6/Data Miner Hacker-Sprinter | -5/Proximity Caves Hacker-Sprinter | -5/Factory Hacker-Mutant | -5/Waste Hacker-Sprinter | -5/Factory Hacker-Mutant | -4/Factory Resources | -11 -10 -10 -9 -9 -9 -9 -6 -6 -6 -6 -6 -6 -5 -5 -5 -5 -4 ----------- Run | Yrd Mat Min Mat Sto Rec Scr Fac Was Fac Low Low Dat Pro Fac Was Fac Fac Matter Collected 1863 | 213 329 77 96 182 40 20 335 178 54 20 . . 13 115 49 102 40 Remotely . | . . . . . . . . . . . . . . . . . . Salvage Created 4153 | 64 594 156 775 582 149 . 689 657 66 . . . . 168 . 213 40 Parts 209 | 9 34 9 42 30 11 . 29 3 9 . . . . 14 . 14 5 Haulers Intercepted 3 | . . . 1 2 . . . . . . . . . . . . . Recyclers Shooed 2 | . . . 1 1 . . . . . . . . . . . . . Parts Field Recycled . | . . . . . . . . . . . . . . . . . . Retrieved Matter . | . . . . . . . . . . . . . . . . . . Parts Self-Destructed 2 | . . . . . . . . . . 2 . . . . . . . Prevented . | . . . . . . . . . . . . . . . . . . Kills | -11 -10 -10 -9 -9 -9 -9 -6 -6 -6 -6 -6 -6 -5 -5 -5 -5 -4 ------- Run | Yrd Mat Min Mat Sto Rec Scr Fac Was Fac Low Low Dat Pro Fac Was Fac Fac Combat Hostiles Destroyed 60 | . 10 4 14 9 3 . 9 . 3 . . . . 2 . 6 . Melee 11 | . . . . . . . 1 . 3 . . . . 2 . 5 . Guns 29 | . 10 4 13 2 . . . . . . . . . . . . . Cannons 16 | . . . . 7 3 . 6 . . . . . . . . . . AOE 1 | . . . . . . . . . . . . . . . . 1 . Classes Destroyed 14 | 1 7 . 3 . 2 . 1 . . . . . . . . . . Worker 2 | . 2 . . . . . . . . . . . . . . . . Builder 1 | . 1 . . . . . . . . . . . . . . . . Tunneler 4 | 3 . . . . . . . . . . . . . . . . 1 Hauler 3 | . . . 1 2 . . . . . . . . . . . . . Recycler 3 | . 1 . . 1 . . 1 . . . . . . . . . . Mechanic 2 | . . . 1 1 . . . . . . . . . . . . . Operator 4 | . 1 . 1 . . . 1 . . . . . . . . . 1 Watcher 10 | . 3 . 2 . . . 1 . . . . . . 2 . 2 . Swarmer 12 | . 3 . . 2 . . . . 3 . . . . . . 4 . Grunt 26 | . 7 4 10 2 . . 3 . . . . . . . . . . Duelist 1 | . . . . . 1 . . . . . . . . . . . . Sentry 11 | . . . 4 5 1 . 1 . . . . . . . . . . Hunter 2 | . . . . . . . 2 . . . . . . . . . . Programmer 8 | . . . . . 1 . 3 . . . . . . 2 . 2 . Best Kill Streak 7 | 1 3 4 7 3 2 . 3 . 3 . . . . 2 . 2 1 Combat Bots Only 6 | . 3 4 6 3 2 . 2 . 3 . . . . 2 . 2 . Max Kills in Single Turn 2 | 1 1 1 2 2 2 . 1 . 1 . . . . 1 . 1 1 Gunslinging 1 | . . . 1 . . . . . . . . . . . . . . Exploded 1 | . . . . . . . . . . . . . . . . 1 . Melee 1 | . . . . . . . 1 . 1 . . . . 1 . 1 . Uniques/NPCs Destroyed . | . . . . . . . . . . . . . . . . . . Combat | -11 -10 -10 -9 -9 -9 -9 -6 -6 -6 -6 -6 -6 -5 -5 -5 -5 -4 -------- Run | Yrd Mat Min Mat Sto Rec Scr Fac Was Fac Low Low Dat Pro Fac Was Fac Fac Hostile Shots Fired 601 | . 51 12 75 39 6 . 134 . 24 . . . 16 13 . 171 60 Missed 241 | . 15 6 21 16 2 . 56 . 18 . . . 8 4 . 68 27 Damage Taken 6237 | . 383 190 729 328 70 . 1232 . 71 . . . 127 191 . 2287 629 Core 1400 | . 71 9 108 53 15 . 203 . 31 . . . 54 . . 593 263 Absorbed by Shields . | . . . . . . . . . . . . . . . . . . Ignored by Resistances 27 | . . . . . . . 27 . . . . . . . . . . Regen/Repaired (Parts) 381 | . . . 64 . . . . 110 5 . . . . 135 . . 67 Core Remaining (%) 66 | 100 . 68 . . . 56 . . . . . . 66 . . 40 . Volleys Fired 192 | 8 47 9 38 36 7 . 39 1 . . . . . 2 . 5 . Largest 2 | 2 2 2 2 2 2 . 2 1 . . . . . 1 . 1 . Hottest 136 | 80 112 112 112 136 136 . 136 5 . . . . . 7 . 57 . Shots Fired 366 | 16 96 14 75 72 14 . 71 1 . . . . . 2 . 5 . Gun 229 | 16 96 10 75 32 . . . . . . . . . . . . . Cannon 126 | . . . . 40 14 . 71 . . . . . . . . 1 . Launcher 8 | . . 4 . . . . . . . . . . . . . 4 . Special 3 | . . . . . . . . 1 . . . . . 2 . . . Kinetic 19 | 4 14 . . . . . . . . . . . . . . 1 . Thermal 314 | 4 68 10 75 72 14 . 71 . . . . . . . . . . Explosive 8 | . . 4 . . . . . . . . . . . . . 4 . Electromagnetic 22 | 8 14 . . . . . . . . . . . . . . . . Robot Hit Streak 12 | 2 8 6 12 11 3 . 7 1 . . . . . 1 . . . Robot Miss Streak 8 | 2 3 . 2 4 1 . 8 . . . . . . 1 . 3 . Penetration Max . | . . . . . . . . . . . . . . . . . . Secondary Targets 7 | . 2 . 4 1 . . . . . . . . . . . . . Max Gunslinging Chain 1 | . 1 . 1 1 . . . . . . . . . . . . . Shots Hit Robots 275 | 8 58 5 53 44 8 . 51 15 3 2 . . . 11 . 15 2 Core Hits 125 | 3 23 4 31 19 2 . 22 5 3 . . . . 4 . 9 . Critical Kills 2 | . . . . . . . 2 . . . . . . . . . . Critical Parts Destroyed . | . . . . . . . . . . . . . . . . . . Critical Strikes 20 | 1 5 . 3 4 . . 2 2 . . . . . 1 . 2 . Burn 12 | . 5 . 3 4 . . . . . . . . . . . . . Meltdown 2 | . . . . . . . 2 . . . . . . . . . . Corrupt 1 | 1 . . . . . . . . . . . . . . . . . Sever 5 | . . . . . . . . 2 . . . . . 1 . 2 . Melee Attacks 115 | . . . . . . . 17 14 10 2 . . . 26 . 41 5 Impact . | . . . . . . . . . . . . . . . . . . Slashing 104 | . . . . . . . 17 14 10 . . . . 24 . 34 5 Piercing . | . . . . . . . . . . . . . . . . . . Sneak Attacks 7 | . . . . . . . 3 . . 2 . . . 1 . . 1 Combat Hostiles 1 | . . . . . . . . . . . . . . 1 . . . Follow-up Attacks . | . . . . . . . . . . . . . . . . . . Damage Inflicted 6125 | 128 887 76 809 837 209 . 1350 325 71 . . . . 372 . 894 167 Guns 2198 | 128 887 76 777 330 . . . . . . . . . . . . . Cannons 1638 | . . . . 505 209 . 924 . . . . . . . . . . Explosions 257 | . . . . . . . . . . . . . . . . 257 . Melee 1991 | . . . . . . . 419 325 71 . . . . 372 . 637 167 Ramming 41 | . . . 32 2 . . 7 . . . . . . . . . . Kinetic 153 | 28 125 . . . . . . . . . . . . . . . . Thermal 3488 | 31 636 76 777 835 209 . 924 . . . . . . . . . . Explosive 257 | . . . . . . . . . . . . . . . . 257 . Electromagnetic 195 | 69 126 . . . . . . . . . . . . . . . . Impact . | . . . . . . . . . . . . . . . . . . Slashing 1991 | . . . . . . . 419 325 71 . . . . 372 . 637 167 Piercing . | . . . . . . . . . . . . . . . . . . Highest Corruption 9 | 2 9 9 . . . . 9 9 9 9 9 9 9 . . 8 . Average Corruption 7 | 2 6 9 . . . . 4 9 9 9 9 9 9 . . 6 . Corruption Purged . | . . . . . . . . . . . . . . . . . . Corruption Blocked . | . . . . . . . . . . . . . . . . . . Effects 107 | . 34 7 . . . . 18 7 15 8 5 . 4 . . 9 . Message Errors 22 | . 7 . . . . . 6 2 2 2 2 . 1 . . . . Matter Fused 22 | . 6 1 . . . . 5 2 3 . 1 . 1 . . 3 . Heat Flow Errors 18 | . 4 4 . . . . . 1 4 2 2 . 1 . . . . Energy Discharges 21 | . 8 1 . . . . 3 2 3 1 . . . . . 3 . Parts Rejected 2 | . 2 . . . . . . . . . . . . . . . . Parts Fused 1 | . . . . . . . 1 . . . . . . . . . . Data Loss (minor) 13 | . 4 . . . . . 1 . 2 3 . . 1 . . 2 . Data Loss (major) 5 | . . 1 . . . . 2 . 1 . . . . . . 1 . Misfires 2 | . 2 . . . . . . . . . . . . . . . . Alerts 1 | . 1 . . . . . . . . . . . . . . . . Overload Shots . | . . . . . . . . . . . . . . . . . . Overflow Damage 365 | . . . . 1 27 . 102 . . . . . . 42 . 86 107 Projectiles 28 | . . . . 1 27 . . . . . . . . . . . . Explosions 3 | . . . . . . . . . . . . . . . . 3 . Melee 334 | . . . . . . . 102 . . . . . . 42 . 83 107 Knockbacks . | . . . . . . . . . . . . . . . . . . Impact . | . . . . . . . . . . . . . . . . . . Kinetic . | . . . . . . . . . . . . . . . . . . Secondary . | . . . . . . . . . . . . . . . . . . Self-Inflicted Damage 236 | . . 123 . . . . . . . . . . . . . 113 . Shots 7 | . . 4 . . . . . . . . . . . . . 3 . Rammed . | . . . . . . . . . . . . . . . . . . Targets Rammed 11 | . . . 7 3 . . 1 . . . . . . . . . . Kicked 11 | . . . 7 3 . . 1 . . . . . . . . . . Crushed . | . . . . . . . . . . . . . . . . . . Highest Temperature 337 | 54 258 220 231 126 135 . 213 134 295 272 293 2 109 305 337 313 . Average Temperature 87 | 33 61 84 62 32 59 . 55 76 121 92 103 2 41 108 137 102 . Received Heat Transfer 1041 | . 171 36 396 129 15 . 138 . 12 . . . . 18 . 30 96 Effects 6 | . . . . . . . . . 1 . 1 . . 3 1 . . Energy Bleed 1 | . . . . . . . . . 1 . . . . . . . . Interference 4 | . . . . . . . . . . . 1 . . 3 . . . Damage (minor) 1 | . . . . . . . . . . . . . . . 1 . . Siege Activations . | . . . . . . . . . . . . . . . . . . Robots Corrupted . | . . . . . . . . . . . . . . . . . . Combat Hostiles . | . . . . . . . . . . . . . . . . . . Parts Fried 1 | . 1 . . . . . . . . . . . . . . . . Impact Corruptions . | . . . . . . . . . . . . . . . . . . Robots Melted 3 | . . . 1 . . . 2 . . . . . . . . . . Combat Hostiles 3 | . . . 1 . . . 2 . . . . . . . . . . Parts Melted 20 | . 4 . 5 5 . . 6 . . . . . . . . . . Heat Transferred 8363 | 75 1961 185 2183 2035 333 . 1591 . . . . . . . . . . Parts Sabotaged . | . . . . . . . . . . . . . . . . . . Parts Stolen . | . . . . . . . . . . . . . . . . . . Parts Stripped . | . . . . . . . . . . . . . . . . . . Power Chain Reactions . | . . . . . . . . . . . . . . . . . . Alert | -11 -10 -10 -9 -9 -9 -9 -6 -6 -6 -6 -6 -6 -5 -5 -5 -5 -4 ------- Run | Yrd Mat Min Mat Sto Rec Scr Fac Was Fac Low Low Dat Pro Fac Was Fac Fac Peak Influence 492 | 15 178 108 379 417 295 . 167 52 492 . . . . 280 98 333 418 Initial 159 | . 9 12 41 159 57 . . 52 36 . . . . 9 98 68 138 Average 132 | 5 57 34 139 255 98 . 48 52 265 . . . . 91 98 209 251 Maximum Alert Level 2 | . . . 1 2 1 . . . 2 . . . . 1 . 1 2 Low Security (%) 72 | 100 100 100 67 9 93 . 100 100 43 . . . . 92 100 48 44 Level 1 26 | . . . 32 88 6 . . . 34 . . . . 7 . 51 54 Level 2 1 | . . . . 1 . . . . 22 . . . . . . . . Level 3 . | . . . . . . . . . . . . . . . . . . Level 4 . | . . . . . . . . . . . . . . . . . . Level 5 . | . . . . . . . . . . . . . . . . . . High Security . | . . . . . . . . . . . . . . . . . . Max Security . | . . . . . . . . . . . . . . . . . . Squads Dispatched 23 | . 2 . 1 2 . . 7 . 3 . . . . 2 . 2 4 Investigation 12 | . 1 . 1 1 . . 1 . 3 . . . . 1 . 1 3 Extermination 4 | . . . . . . . 2 . . . . . . 1 . 1 . Reinforcement 5 | . 1 . . . . . 3 . . . . . . . . . 1 Assault . | . . . . . . . . . . . . . . . . . . Garrison 2 | . . . . 1 . . 1 . . . . . . . . . . Intercept . | . . . . . . . . . . . . . . . . . . Searches Triggered 1 | . . . . . . . . . . . . . . . . . 1 Data Miner Redirects 3 | . . . . . . . . . . . . . . 1 . 1 1 Construction Impeded . | . . . . . . . . . . . . . . . . . . Haulers Reinforced 1 | . . . . . . . . . . . . . . . . . 1 Active Scanning Responses . | . . . . . . . . . . . . . . . . . . Cargo Convoy Interrupts . | . . . . . . . . . . . . . . . . . . Stealth | -11 -10 -10 -9 -9 -9 -9 -6 -6 -6 -6 -6 -6 -5 -5 -5 -5 -4 --------- Run | Yrd Mat Min Mat Sto Rec Scr Fac Was Fac Low Low Dat Pro Fac Was Fac Fac Distress Signals 14 | . 1 . . 1 . . 2 . . . . . . 2 . 1 7 Communications Jammed . | . . . . . . . . . . . . . . . . . . Distress Signals . | . . . . . . . . . . . . . . . . . . Times Spotted 216 | . 22 4 20 30 7 . 31 . 5 . . . 10 20 . 28 39 Peak Tracking Total 12 | . 4 4 7 5 2 . 8 . 3 . . . 9 7 . 7 12 Tactical Retreats 32 | . 1 . 1 1 . . 7 . . . . . 1 5 . 10 6 Traps | -11 -10 -10 -9 -9 -9 -9 -6 -6 -6 -6 -6 -6 -5 -5 -5 -5 -4 ------- Run | Yrd Mat Min Mat Sto Rec Scr Fac Was Fac Low Low Dat Pro Fac Was Fac Fac Traps Triggered 8 | . 2 . . 2 . . 3 . . . . . . 1 . . . Indirectly . | . . . . . . . . . . . . . . . . . . Trap Hack Attempts 1 | . . . . . . . . . . . . . . 1 . . . Triggered . | . . . . . . . . . . . . . . . . . . Disarmed . | . . . . . . . . . . . . . . . . . . Reprogrammed . | . . . . . . . . . . . . . . . . . . Reused . | . . . . . . . . . . . . . . . . . . Traps Extracted . | . . . . . . . . . . . . . . . . . . Installed . | . . . . . . . . . . . . . . . . . . Triggered . | . . . . . . . . . . . . . . . . . . Machines | -11 -10 -10 -9 -9 -9 -9 -6 -6 -6 -6 -6 -6 -5 -5 -5 -5 -4 ---------- Run | Yrd Mat Min Mat Sto Rec Scr Fac Was Fac Low Low Dat Pro Fac Was Fac Fac Machines Disabled 13 | . 2 . . 1 . . 2 . 2 . . . . . . 2 4 Max in Single Turn 1 | . 1 . . 1 . . 1 . . . . . . . . 1 . Garrison Access 4 | . . . . 1 . . 1 . 1 . . . . . . 1 . Machines Repaired . | . . . . . . . . . . . . . . . . . . Machines Dismantled . | . . . . . . . . . . . . . . . . . . Machines Sabotaged . | . . . . . . . . . . . . . . . . . . Overloaded Fab Kills . | . . . . . . . . . . . . . . . . . . Hacking | -11 -10 -10 -9 -9 -9 -9 -6 -6 -6 -6 -6 -6 -5 -5 -5 -5 -4 --------- Run | Yrd Mat Min Mat Sto Rec Scr Fac Was Fac Low Low Dat Pro Fac Was Fac Fac Machines Accessed 82 | . 5 . 6 11 9 4 12 . 9 . . 4 . 9 . 7 6 Terminals 44 | . 5 . 5 10 5 . 8 . 4 . . . . 3 . 3 1 Fabricators 9 | . . . . . . . 2 . 3 . . . . 1 . 1 2 Repair Stations 3 | . . . 1 . . . . . . . . . . 1 . . 1 Recycling Units 9 | . . . . . 4 . . . 1 . . . . 1 . 1 2 Scanalyzers 5 | . . . . . . . 1 . . . . . . 3 . 1 . Garrison Access 4 | . . . . 1 . . 1 . 1 . . . . . . 1 . Total Hacks 331 | . 18 . 23 32 29 35 54 . 36 . . 29 . 30 . 31 14 Successful 219 | . 10 . 11 15 16 35 28 . 23 . . 29 . 22 . 21 9 Failed 110 | . 7 . 12 17 13 . 25 . 13 . . . . 8 . 10 5 Catastrophic 17 | . 1 . 4 1 . . 7 . 2 . . . . 1 . . 1 Database Lockouts 2 | . 1 . . . . . 1 . . . . . . . . . . Manual 133 | . 10 . 14 18 18 . 34 . 19 . . . . 9 . 8 3 Terminals 158 | . 18 . 18 29 17 . 38 . 19 . . . . 8 . 10 1 Fabricators 26 | . . . . . . . 8 . 7 . . . . 1 . 2 8 Repair Stations 9 | . . . 5 . . . . . . . . . . 2 . . 2 Recycling Units 24 | . . . . . 12 . . . 5 . . . . 2 . 2 3 Scanalyzers 38 | . . . . . . . 6 . . . . . . 17 . 15 . Garrison Access 12 | . . . . 3 . . 2 . 5 . . . . . . 2 . Terminal Hacks 111 | . 7 . 4 9 6 35 11 . 6 . . 29 . . . 4 . Record 46 | . . . . . . 35 . . . . . 11 . . . . . Part Schematic 14 | . . . 1 . 1 . 2 . 1 . . 8 . . . 1 . Robot Schematic 7 | . . . . . . . . . . . . 7 . . . . . Robot Analysis 10 | . 1 . . 1 2 . 4 . 2 . . . . . . . . Prototype ID Bank 12 | . 1 . 2 3 2 . 1 . . . . 3 . . . . . Open Door 2 | . . . . 2 . . . . . . . . . . . . . Branch Access Points 1 | . 1 . . . . . . . . . . . . . . . . Machine Index 2 | . 1 . . . . . . . 1 . . . . . . . . Terminal Index 1 | . . . . . . . 1 . . . . . . . . . . Scanalyzer Index 1 | . . . . . . . 1 . . . . . . . . . . Garrison Index 1 | . . . . . . . . . . . . . . . . 1 . Unreport Threat 2 | . 2 . . . . . . . . . . . . . . . . Locate Traps 2 | . 1 . . 1 . . . . . . . . . . . . . Dispatch Records 1 | . . . . . . . . . . . . . . . . 1 . Surveillance Status 1 | . . . . . . . 1 . . . . . . . . . . Recall Investigation 2 | . . . . . . . 1 . 1 . . . . . . . . Zone Layout 6 | . . . 1 2 1 . . . 1 . . . . . . 1 . Fabricator Hacks 20 | . . . . . . . 7 . 7 . . . . 1 . . 5 Network Status 4 | . . . . . . . 1 . 1 . . . . 1 . . 1 Load Schematic 8 | . . . . . . . 3 . 3 . . . . . . . 2 Build 8 | . . . . . . . 3 . 3 . . . . . . . 2 Repair Station Hacks 7 | . . . 3 . . . . . . . . . . 2 . . 2 Scan Component 4 | . . . 2 . . . . . . . . . . 1 . . 1 Repair 3 | . . . 1 . . . . . . . . . . 1 . . 1 Recycling Unit Hacks 7 | . . . . . 3 . . . 1 . . . . 1 . 1 1 Retrieve Components 7 | . . . . . 3 . . . 1 . . . . 1 . 1 1 Scanalyzer 30 | . . . . . . . 4 . . . . . . 15 . 11 . Insert Component 13 | . . . . . . . 2 . . . . . . 7 . 4 . Analyze 17 | . . . . . . . 2 . . . . . . 8 . 7 . Garrison Access Hacks 4 | . . . . 1 . . 1 . 1 . . . . . . 1 . Seal Access 4 | . . . . 1 . . 1 . 1 . . . . . . 1 . Unauthorized Hacks 40 | . 3 . 4 5 7 . 5 . 8 . . . . 3 . 4 1 Terminals 27 | . 3 . 4 5 2 . 5 . 4 . . . . 2 . 2 . Track 5 | . . . 1 . . . 2 . 1 . . . . . . 1 . Assimilate 2 | . . . . . . . . . . . . . . 2 . . . Botnet 15 | . 2 . 2 5 2 . 2 . 2 . . . . . . . . Disrupt 1 | . . . . . . . . . . . . . . . . 1 . Operators 4 | . 1 . 1 . . . 1 . 1 . . . . . . . . Fabricators . | . . . . . . . . . . . . . . . . . . Repair Stations 1 | . . . . . . . . . . . . . . . . . 1 Recycling Units 8 | . . . . . 5 . . . 3 . . . . . . . . Reject 3 | . . . . . 2 . . . 1 . . . . . . . . Recyclers 1 | . . . . . . . . . 1 . . . . . . . . Mask 1 | . . . . . . . . . 1 . . . . . . . . Tunnel 3 | . . . . . 3 . . . . . . . . . . . . Scrapoids 1 | . . . . . . . . . . . . . . . . . 1 Scanalyzers 3 | . . . . . . . . . . . . . . 1 . 2 . Researchers 1 | . . . . . . . . . . . . . . . . 1 . Extract 2 | . . . . . . . . . . . . . . 1 . 1 . Garrison Access 1 | . . . . . . . . . 1 . . . . . . . . Decoy 1 | . . . . . . . . . 1 . . . . . . . . Data Cores Recovered 2 | . . . 1 . . . . . . . . . . . . . 1 Used 1 | . . . 1 . . . . . . . . . . . . . . Hacking Detections 66 | . 5 . 6 10 9 . 10 . 9 . . . . 7 . 5 5 Full Trace Events 11 | . 1 . 2 1 1 . 1 . 3 . . . . . . . 2 Feedback Events . | . . . . . . . . . . . . . . . . . . Feedback Blocked . | . . . . . . . . . . . . . . . . . . Robot Schematics Acquired 7 | . . . . . . . . . . . . 7 . . . . . Robots Built . | . . . . . . . . . . . . . . . . . . Authchips . | . . . . . . . . . . . . . . . . . . Time . | . . . . . . . . . . . . . . . . . . Total Robot Build Rating . | . . . . . . . . . . . . . . . . . . Part Schematics Acquired 45 | . . . 1 . 1 . 4 . 1 . . 8 . 19 . 11 . Parts Built 9 | . . . . . . . 5 . 3 . . . . . . . 1 Authchips 2 | . . . . . . . 2 . . . . . . . . . . Time 706 | . . . . . . . 218 . 296 . . . . . . . 192 Total Part Build Rating 42 | . . . . . . . 20 . 14 . . . . . . . 8 Parts Repaired 3 | . . . 1 . . . . . . . . . . 1 . . 1 Time 116 | . . . 44 . . . . . . . . . . 38 . . 34 Parts Recycled . | . . . . . . . . . . . . . . . . . . Recycled Matter . | . . . . . . . . . . . . . . . . . . Retrieved Matter . | . . . . . . . . . . . . . . . . . . Retrieved Components 26 | . . . . . 20 . . . . . . . . 3 . 2 1 Parts Scanalyzed 13 | . . . . . . . 2 . . . . . . 7 . 4 . Part Schematics Acquired 13 | . . . . . . . 2 . . . . . . 7 . 4 . Parts Damaged 3 | . . . . . . . 1 . . . . . . 2 . . . Bothacking | -11 -10 -10 -9 -9 -9 -9 -6 -6 -6 -6 -6 -6 -5 -5 -5 -5 -4 ------------ Run | Yrd Mat Min Mat Sto Rec Scr Fac Was Fac Low Low Dat Pro Fac Was Fac Fac Used RIF Installer . | . . . . . . . . . . . . . . . . . . Robots Hacked 6 | . . . . . . . . . . 2 . . . 2 . 2 . Non-combat 2 | . . . . . . . . . . 2 . . . . . . . Combat . | . . . . . . . . . . . . . . . . . . Robot Hacks Applied 2 | . . . . . . . . . . 2 . . . . . . . parse_system 1 | . . . . . . . . . . 1 . . . . . . . no_distress 1 | . . . . . . . . . . 1 . . . . . . . Manual 4 | . . . . . . . . . . . . . . 2 . 2 . Relay Couplers Released . | . . . . . . . . . . . . . . . . . . Fabnet Peak Effective % . | . . . . . . . . . . . . . . . . . . Robots Rewired 14 | . . . . 1 13 . . . . . . . . . . . . Allies Hacked . | . . . . . . . . . . . . . . . . . . Hacks Repelled . | . . . . . . . . . . . . . . . . . . Allies | -11 -10 -10 -9 -9 -9 -9 -6 -6 -6 -6 -6 -6 -5 -5 -5 -5 -4 -------- Run | Yrd Mat Min Mat Sto Rec Scr Fac Was Fac Low Low Dat Pro Fac Was Fac Fac Total Allies 51 | . . . . 10 13 . . 20 . . . . . 1 . 2 5 Largest Group 22 | . . . . 10 22 15 15 20 20 4 . . . 1 . 1 5 Highest-Rated Group 741 | . . . . 88 240 141 141 741 741 176 . . . 26 . 26 241 Highest-Rated Ally 50 | . . . . 16 34 18 18 50 50 46 . . . 26 . 26 50 Total Orders 4 | . . . . . . 2 1 . . . . . . . . . 1 STAY 2 | . . . . . . 1 . . . . . . . . . . 1 FOLLOW 1 | . . . . . . 1 . . . . . . . . . . . EXPLORE 1 | . . . . . . . 1 . . . . . . . . . . Ally Attacks 170 | . . . . . 20 . 21 . 73 7 . . . . . . 49 Total Damage 4161 | . . . . . 281 . 328 . 2399 185 . . . . . . 968 Kills 31 | . . . . . 4 . 1 . 19 1 . . . . . . 6 Allies Corrupted 2 | . . . . . . . . . . 1 . . . . . 1 . Allies Melted . | . . . . . . . . . . . . . . . . . . Intel | -11 -10 -10 -9 -9 -9 -9 -6 -6 -6 -6 -6 -6 -5 -5 -5 -5 -4 ------- Run | Yrd Mat Min Mat Sto Rec Scr Fac Was Fac Low Low Dat Pro Fac Was Fac Fac Robot Analysis Total 9 | . 1 . . 1 1 . 4 . 2 . . . . . . . . Derelict Logs Recovered 3 | . . 1 . . . . . . . 1 . . 1 . . . . Drone Launches 3 | . . . . . . . 3 . . . . . . . . . . Drone Recoveries 1 | . . . . . . . 1 . . . . . . . . . . Exploration | -11 -10 -10 -9 -9 -9 -9 -6 -6 -6 -6 -6 -6 -5 -5 -5 -5 -4 ------------- Run | Yrd Mat Min Mat Sto Rec Scr Fac Was Fac Low Low Dat Pro Fac Was Fac Fac Turns Passed 11027 | 141 1098 312 752 1309 1063 1822 1451 207 409 335 113 20 90 615 100 742 448 Spaces Moved 11693 | 95 643 147 422 803 601 1479 1443 374 694 395 346 81 271 1405 239 1501 754 Core 64 | 20 . . . . . . . . . . . . . . . 43 1 Treads . | . . . . . . . . . . . . . . . . . . Legs 4854 | 75 643 147 422 803 601 1479 684 . . . . . . . . . . Wheels 33 | . . . . . . . . . . . . . . . . 33 . Hover . | . . . . . . . . . . . . . . . . . . Flight 6742 | . . . . . . . 759 374 694 395 346 81 271 1405 239 1425 753 Fastest Speed 19 | 50 120 190 120 120 120 120 21 25 24 24 24 24 24 19 21 21 42 Average Speed 68 | 105 129 190 120 133 132 120 70 25 24 24 24 24 24 19 21 26 44 Slowest Speed 205 | 120 190 190 190 190 190 120 120 25 25 24 24 24 24 23 21 200 205 Overloaded Moves 15 | . . . . . . . 15 . . . . . . . . . . Propulsion Burnouts . | . . . . . . . . . . . . . . . . . . Robots Hopped 29 | . . . . . . . 1 . . . . . . 13 . 8 7 Cave-ins Triggered . | . . . . . . . . . . . . . . . . . . Exploration Rate (%) 53 | 4 81 25 39 94 92 89 33 96 13 57 48 69 52 29 91 31 26 Regions Visited 17 Branch Regions 8 Pre-discovered Areas 11 | . . . . . 3 6 . . . 1 . 1 . . . . . Known Exits Taken 8 | . 1 . 1 . . . . . 1 1 1 1 1 . . 1 . Unknown Exits Taken 5 | 1 . 1 . 1 1 1 . . . . . . . . . . . Scrap Searched 13 | . . . . . . 9 . . . 2 1 . 1 . . . . Spaces Dug 30 | . . . . . . . 7 . 5 . . . . 8 . 10 . Terrain Destroyed 60 | . . 20 . . . . 7 . 5 . . . . 8 . 20 . Melee 30 | . . . . . . . 7 . 5 . . . . 8 . 10 . Projectile . | . . . . . . . . . . . . . . . . . . AOE 30 | . . 20 . . . . . . . . . . . . . 10 . Terrain Rammed . | . . . . . . . . . . . . . . . . . . Walls Destroyed . | . . . . . . . . . . . . . . . . . . Machines Disabled . | . . . . . . . . . . . . . . . . . . Actions | -11 -10 -10 -9 -9 -9 -9 -6 -6 -6 -6 -6 -6 -5 -5 -5 -5 -4 --------- Run | Yrd Mat Min Mat Sto Rec Scr Fac Was Fac Low Low Dat Pro Fac Was Fac Fac Total 14226 | 116 822 165 592 979 853 1533 1786 457 913 636 375 80 295 1689 288 1798 849 Wait 1681 | . 90 6 96 79 72 29 201 57 193 232 30 . 24 239 48 207 78 Move 11624 | 94 642 146 421 802 600 1478 1441 373 693 394 345 80 270 1380 238 1485 742 Hop 25 | . . . . . . . 1 . . . . . . 12 . 7 5 Pick Up 95 | 3 13 2 12 10 3 10 14 3 6 2 . . . 7 . 7 3 Fast Attach 58 | 7 6 . 2 6 1 3 12 1 1 2 . . . 4 1 5 7 Attach 58 | 1 1 . 7 1 . . 21 2 1 . . . 1 6 . 13 4 Detach 30 | 1 2 . 1 . . . 14 1 2 . . . . 2 . 4 3 Swap 52 | 2 8 2 3 11 3 . 9 3 1 . . . . 4 . 6 . Drop 115 | . 13 . 5 24 5 13 16 2 6 4 . . . 6 1 18 2 Fire 192 | 8 47 9 38 36 7 . 39 1 . . . . . 2 . 5 . Melee 115 | . . . . . . . 17 14 10 2 . . . 26 . 41 5 Ram . | . . . . . . . . . . . . . . . . . . Kick 11 | . . . 7 3 . . 1 . . . . . . . . . . Crush . | . . . . . . . . . . . . . . . . . . Escape Stasis 5 | . . . . 5 . . . . . . . . . . . . . Rewire 164 | . . . . 2 162 . . . . . . . . . . . . Trap 1 | . . . . . . . . . . . . . . 1 . . . Miscellaneous . | . . . . . . . . . . . . . . . . . . Route ------- -11/Scrapyard -10/Materials (discovered 4 exits: *Mat x2 / *Min x2) -10/Mines -9/Materials (discovered 4 exits: [*Mat] / [Min] / *Sto x2) -9/Storage (discovered 2 exits: [*Mat] / *Rec) -9/Recycling (discovered 2 exits: [*Fac] / *Scr) -9/Scraptown (discovered 2 exits: *Fac x2) -6/Factory (discovered 4 exits: *Fac x2 / Low x2) -6/Waste -6/Factory (discovered 3 exits: *Fac / *Low x2) -6/Lower Caves -6/Lower Caves -6/Data Miner -5/Proximity Caves -5/Factory -5/Waste -5/Factory -4/Factory History --------- Turn | Location | Event 12 | -11/Scrapyard | Discovered new exit (range 15) 142 | -11/Scrapyard | Entered Materials 314 | -10/Materials | Build established: Mutant 363 | -10/Materials | Central database locked down 363 | -10/Materials | Identified exit to Mines 542 | -10/Materials | Discovered new exit (range 3) 892 | -10/Materials | Discovered new exit (range 15) 1240 | -10/Materials | Entered Mines 1322 | -10/Mines | Discovered new exit (range 5) 1357 | -10/Mines | Learned location of 1 exit from Materials 1418 | -10/Mines | Excavation squad dispatched 1418 | -10/Mines | A large section of the Mines collapsed 1552 | -10/Mines | Entered Materials 1552 | -9/Materials | Evolved 2 slots: Propulsion x1, Utility x1 1553 | -9/Materials | Identified exit to Storage 1610 | -9/Materials | Repaired Broken Beam Rifle 2140 | -9/Materials | Discovered new exit (range 16) 2206 | -9/Materials | Discovered new exit (range 13) 2249 | -9/Materials | Discovered exit to Storage (range 12) 2304 | -9/Materials | Entered Storage 2352 | -9/Storage | Met 01-MTF 2581 | -9/Storage | Garrison activated, responded to threat 2871 | -9/Storage | Used back door to open Recycling access 2871 | -9/Storage | Discovered new exit (range 4) 3077 | -9/Storage | Discovered new exit (range 16) 3287 | -9/Storage | Assisted by bots powering up and referring to "LRC-V3" 3572 | -9/Storage | Build established: Commander-Mutant 3613 | -9/Storage | Entered Recycling 3613 | -9/Recycling | Accompanied by 11 allies (01-MTF) 4327 | -9/Recycling | Discovered new exit (range 14) 4342 | -9/Recycling | Scanned before Scraplab entrance 4429 | -9/Recycling | Lost 6 allies 4620 | -9/Recycling | Entered Scraplab 4629 | -9/Recycling | Discovered new exit (range 3) 4676 | -9/Recycling | Entered Scraptown 4676 | -9/Scraptown | Accompanied by 15 allies 4820 | -9/Scraptown | Heard Great Nut preacher, LISTEN AND RECITE! 4921 | -9/Scraptown | Discovered new exit (range 7) 5013 | -9/Scraptown | Visited Bundlers 5100 | -9/Scraptown | Visited Symbiants 5121 | -9/Scraptown | Visited Fellowship of the Rings 5176 | -9/Scraptown | Visited Cave Peace 5240 | -9/Scraptown | Visited Spacefarers 5322 | -9/Scraptown | Visited Comm Corps 5540 | -9/Scraptown | Visited UFD Registry 5540 | -9/Scraptown | Registered with UFD as "Wrenchchaser" 5602 | -9/Scraptown | Visited Abandonware Association 5620 | -9/Scraptown | Learned abandonware demo "HACKBUD.EXE" 5620 | -9/Scraptown | Learned abandonware demo "ERRANTS.EXE" 5649 | -9/Scraptown | Visited Junk Cannon Lab 5801 | -9/Scraptown | Visited Junk Repository 5855 | -9/Scraptown | Visited Derelict Rescue Squad 5927 | -9/Scraptown | Visited Research Penetration Think Tank 5963 | -9/Scraptown | Visited Cartography Club 6129 | -9/Scraptown | Learned location of Zion (-7) 6129 | -9/Scraptown | Learned location of Cetus (-4) 6129 | -9/Scraptown | Learned location of Armory (-3) 6129 | -9/Scraptown | Learned location of Testing (-3) 6129 | -9/Scraptown | Learned 12 Materials zone layouts 6129 | -9/Scraptown | Learned 24 Factory zone layouts 6129 | -9/Scraptown | Learned 8 Access zone layouts 6129 | -9/Scraptown | Learned 8 Proximity Caves zone layouts 6129 | -9/Scraptown | Learned 24 Proximity Caves zone layouts 6129 | -9/Scraptown | Learned 4 Hub_04(d) zone layouts 6129 | -9/Scraptown | Learned 4 Armory zone layouts 6129 | -9/Scraptown | Learned Storage emergency access door positions 6129 | -9/Scraptown | Learned location of 2 exits from Upper Caves 6129 | -9/Scraptown | Learned location of 3 exits from Proximity Caves 6216 | -9/Scraptown | Found Deep Structural Scanner 6261 | -9/Scraptown | Visited Botcube Research 6301 | -9/Scraptown | Visited Modified Component R&D 6439 | -9/Scraptown | Discovered new exit (range 5) 6498 | -9/Scraptown | Entered Factory 6498 | -6/Factory | Accompanied by 15 allies 6498 | -6/Factory | Evolved 6 slots: Propulsion x2, Utility x4 6499 | -6/Factory | Identified exit to Lower Caves 6500 | -6/Factory | Identified exit to Factory 6609 | -6/Factory | Garrison activated, responded to threat 6661 | -6/Factory | Lost 12 allies 7381 | -6/Factory | Build established: Assassin 7534 | -6/Factory | Fabricated Xenon Bombardment Thruster (x2) 7580 | -6/Factory | Fabricated Xenon Bombardment Thruster (x2) 7840 | -6/Factory | Discovered exit to Factory (range 9) 7849 | -6/Factory | Fabricated Cld. VTOL Module? 7884 | -6/Factory | Central database locked down 7949 | -6/Factory | Manually triggered Chute Trap 7949 | -6/Factory | Sucked down chute 7949 | -6/Factory | Entered Waste 7950 | -6/Waste | Joined by Warlord forces that had cleared the area 8040 | -6/Waste | Discovered new exit (range 14) 8119 | -6/Waste | Identified exit to Factory 8156 | -6/Waste | Entered Factory 8156 | -6/Factory | Accompanied by 20 allies 8161 | -6/Factory | Discovered exit to Factory (range 11) 8179 | -6/Factory | Build established: Hacker-Sprinter 8294 | -6/Factory | Fabricated Adv. Sensor Array (x2) 8302 | -6/Factory | Fabricated Cld. VTOL Module? 8440 | -6/Factory | Fabricated Cld. VTOL Module? 8565 | -6/Factory | Entered Lower Caves 8565 | -6/Lower Caves | Accompanied by 4 allies 8566 | -6/Lower Caves | Identified exit to Lower Caves 8646 | -6/Lower Caves | Encountered a Warlord checkpoint 8900 | -6/Lower Caves | Entered another Lower Caves area 9012 | -6/Lower Caves | Discovered new exit (range 6) 9013 | -6/Lower Caves | Identified exit to Data Miner 9013 | -6/Lower Caves | Entered Data Miner 9013 | -6/Data Miner | Discovered new exit (range 6) 9018 | -6/Data Miner | Met Data Miner 9023 | -6/Data Miner | Learned location of Section 7 (-2) 9023 | -6/Data Miner | Acquired the access code to Warlord's prototype stash 9027 | -6/Data Miner | Received God Mode back door access code from Data Miner 9032 | -6/Data Miner | Identified exit to Proximity Caves 9033 | -6/Data Miner | Entered Proximity Caves 9033 | -5/Proximity Caves | Learned Factory stockpile data 9123 | -5/Proximity Caves | Entered Factory 9123 | -5/Factory | Evolved 2 slots: Propulsion x2 9285 | -5/Factory | Discovered new exit (range 15) 9402 | -5/Factory | Incoming investigation squad redirected 9407 | -5/Factory | Identified exit to Factory 9647 | -5/Factory | Repaired Imp. Light Armor Plating 9738 | -5/Factory | Manually triggered Chute Trap 9738 | -5/Factory | Sucked down chute 9738 | -5/Factory | Entered Waste 9738 | -5/Waste | The area was eerily silent 9820 | -5/Waste | Discovered new exit (range 13) 9828 | -5/Waste | Identified exit to Factory 9838 | -5/Waste | Entered Factory 10073 | -5/Factory | Spotted B-75 Beast 10171 | -5/Factory | Incoming investigation squad redirected 10479 | -5/Factory | Lost 10 parts (2p5n1u2w) 10554 | -5/Factory | Core integrity fell below 50% 10569 | -5/Factory | Discovered exit to Factory (range 8) 10580 | -5/Factory | Entered another Factory area 10580 | -4/Factory | Evolved 2 slots: Utility x2 10600 | -4/Factory | Lost 6 parts (2n4u) 10666 | -4/Factory | Fabricated Impulse Thruster Array? 10728 | -4/Factory | Build established: Hacker-Mutant 10807 | -4/Factory | Scrapoids reinforcements arrived? 10830 | -4/Factory | Search patrols dispatched 10947 | -4/Factory | Repaired Impulse Thruster Array 11015 | -4/Factory | Spotted B-86 Titan 11025 | -4/Factory | Incoming investigation squad redirected 11028 | -4/Factory | Lost 3 parts (1p1n1u) 11028 | -4/Factory | Self-destructed Last Messages --------------- Replicator. 11009_ C-30 ARC bursts open, deploying its payload. 11009_ S-27 Virus unfolds itself. 11010_ Connecting with Fabricator... >>Load(Impulse Thruster Array) Uploading Impulse Thruster Array schematic... Loaded successfully: Impulse Thruster Array Rating: 8 Time: 128 Initiate build sequence. >>Build Building Impulse Thruster Array... ETC: 128 11010_ ALERT: Unauthorized use of fabrication network. Dispatching investigation squad. 11025_ ALERT: Higher priority target reported, redirecting investigation. 11028_ Imp. Sensor Array destroyed. Map ----- +----------------------------------------------------+ | ????????????????????????????????????????????????? | | ????????????????????????????????????????????????? | | ????????????????????????????????????????????????? | | ????????????????????????????????????????????????? | | ????????????????????????????????????????????????? | | ???????????????????????????????????????????????? | | ????????????????????????????????????????? ?????" | | ????????????????????????????????????????# "????" | | ???????????????????????????????????????? "???"" | | ???????????????????????????????????????? ""?""" | | ????????????????????????????????????##### | | ????????????????????????????????????? """""" | | ?????????????????????????????????????# """""" | | ?????????????????????????????????????# """""" | | ?????????????????????????????????????# """""" | | ?????????????????????????????????????# | | ????????????###+######+############### """ | | ????????????# """ | | ????????????# """ | | ????????????# ! | | ????????????# !!! | | ????????????+ !!! | | ????????????# !!! ###+##############+##### | | ????????????# # ?????????? ??? | | ????????????# """" # ?????? ? | | ???????????????"""" @# """ ??# """" """" | | ????????????+ """" # """ """ # """" """" | | ????????????# # """ R" # """" """" | | ????????????# g # """ # """" """" | | ????????????# u ######## ?#???"" ""??? | | ????????????# ???????#######??#???????" "???? | | ????????????# ?????????????????????????" "???? | | ????????????# ?????????????????????????? ???? | | ????????????# ??????????????????????????? ???? | | ??????????????????????????????????????????? ????? | | ???????????????????????????????????????????#????? | | ????????????????????????????????????????????????? | | ????????????????????????????????????????????????? | | ????????????????????????????????????????????????? | | ????????????????????????????????????????????????? | | ????????????????????????????????????????????????? | | ????????????????????????????????????????????????? | | ????????????????????????????????????????????????? | | ????????????????????????????????????????????????? | | ????????????????????????????????????????????????? | | ????????????????????????????????????????????????? | | ????????????????????????????????????????????????? | | ????????????????????????????????????????????????? | | ????????????????????????????????????????????????? | | ????????????????????????????????????????????????? | +----------------------------------------------------+ Best States ------------- Heat Dissipation 51 Energy Generation 21 Energy Capacity 325 Matter Stores 300 Matter Capacity 300 Sight Range 16 Robot Scan Range 16 Terrain Scan Density 10 ECM Strength 1 Additional Mass Support 9 Armor Coverage 450 Resistance: EM 15 Evasion (%) 66 Melee Accuracy 8 Offensive Hacking 24 Defensive Hacking 14 Authchip Count 2 Item Schematics ----------------- ECM Suite | -9/Materials | Hacked Plasma Cutter | -9/Recycling | Hacked Xenon Bombardment Thruster | -6/Factory | Scanalyzed Hacking Suite | -6/Factory | Scanalyzed Cld. VTOL Module | -6/Factory | Hacked Imp. Hacking Suite | -6/Factory | Hacked Adv. Sensor Array | -6/Factory | Hacked Combat Drone Bay | -6/Data Miner | Free Lgt. Regenerative Plating | -6/Data Miner | Free Cld. Gravmag System | -6/Data Miner | Free Imp. Matter Compressor | -6/Data Miner | Free Hvy. Proton Cannon | -6/Data Miner | Free Imp. Antigrav System | -6/Data Miner | Free Adv. Reaction Control System | -6/Data Miner | Free HERF Cannon | -6/Data Miner | Free Adv. Weight Redist. System | -5/Factory | Scanalyzed Adv. Signal Interpreter | -5/Factory | Scanalyzed Imp. Plasma Cutter | -5/Factory | Scanalyzed Med. Storage Unit | -5/Factory | Scanalyzed Imp. Propulsion Shielding | -5/Factory | Scanalyzed Stasis Canceller | -5/Factory | Extracted Arm. Huge Wheel | -5/Factory | Extracted Adv. Terrain Scanner | -5/Factory | Extracted Lgt. Fission Core | -5/Factory | Extracted Variable Charge Gun | -5/Factory | Extracted Weapon Mount | -5/Factory | Extracted Machine Analyzer | -5/Factory | Extracted Imp. Shield Generator | -5/Factory | Extracted Imp. Reaction Control System | -5/Factory | Extracted Lrn. Tractor Beam | -5/Factory | Extracted Hardlight Generator | -5/Factory | Extracted Remote Datajack | -5/Factory | Extracted Field Propulsion Drive | -5/Factory | Scanalyzed Transmission Jammer | -5/Factory | Scanalyzed Field Propulsion Array | -5/Factory | Scanalyzed Centrium Wheel | -5/Factory | Scanalyzed Imp. Light Armor Plating | -5/Factory | Scanalyzed Mass Driver | -5/Factory | Scanalyzed Matter Filter | -5/Factory | Extracted Adv. Terrain Scan Processor | -5/Factory | Extracted Recoil Nullifier | -5/Factory | Extracted Adv. Plasma Cannon | -5/Factory | Extracted Mic. Fission Core | -5/Factory | Extracted Adv. Shield Generator | -5/Factory | Extracted Impulse Thruster Array | -5/Factory | Hacked Robot Schematics ------------------ P-70 Sage | -6/Data Miner | Free R-10 Processor | -6/Data Miner | Free A-15 Conveyor | -6/Data Miner | Free L-41 Fighter | -6/Data Miner | Free A-27 Freighter | -6/Data Miner | Free B-60 Warrior | -6/Data Miner | Free M-36 Artificer | -6/Data Miner | Free Fabricated ------------ Xenon Bombardment Thruster | x2 | -6/Factory | Authchip Xenon Bombardment Thruster | x2 | -6/Factory | Authchip Cld. VTOL Module | x1 | -6/Factory Adv. Sensor Array | x2 | -6/Factory Cld. VTOL Module | x1 | -6/Factory Impulse Thruster Array | x1 | -4/Factory Alien Tech Used ----------------- None Achievements -------------- None Challenges ------------ None Game ------ Seed SmallThermicDeconstructor Manual? 0 Play Time 02:17:35 Cumulative 145.9 hours Start 2024.11.11 @ 12:43:20 End 2024.11.11 @ 18:53:53 Sessions 5 Manual Loads 0 Difficulty Rogue Special Mode None Game No. 75 Rogue 12 Adventurer 63 Explorer 0 Win Type - Total 7 Types 7/0/0/0/0/0/0/0/0 Lore% 66 Gallery% 65 Achievement% 54 Wizard Run 0 Options --------- Layout 1 ASCII 0 Keyboard 1 Movement Numpad Keybinds 0 Fullscreen 2 Font 24/Tamsyn Map View 50x35 Zoom Use 0% Tactical HUD 1 Map Filters NONE Filters NONE Steam 1 RUN: b316768c-1618-411b-86d7-6ff81fb8b556